bitfinex-derivatives/quotes_BTCF0:USTF0_20250417
["timestamp","ask_amount","ask_price","bid_price","bid_amount"]
[1744897742526,0.005,84475.0,84474.0,0.64200071]
[1744897742927,0.002,84475.0,84474.0,0.64200071]
[1744897743729,0.005,84475.0,84474.0,0.64200071]
[1744897743929,0.005,84475.0,84474.0,0.64208071]
[1744897744625,0.1233995,84475.0,84474.0,0.64208071]
[1744897745128,0.0923,84475.0,84474.0,0.64208071]
[1744897745327,0.005,84475.0,84474.0,0.64208071]
[1744897746029,0.1233995,84475.0,84474.0,0.64208071]
[1744897746630,0.005,84475.0,84474.0,0.64208071]
[1744897750721,0.005,84475.0,84474.0,0.42047074]
[1744897751032,0.005,84475.0,84474.0,0.64208071]
[1744897751235,0.005,84475.0,84474.0,0.72160071]
[1744897752729,0.08817759,84483.0,84482.0,0.1183897]
[1744897752929,0.20656589,84483.0,84482.0,0.46018951]
[1744897753234,0.08825759,84483.0,84482.0,0.74158951]
[1744897753422,0.08817759,84483.0,84482.0,0.74158951]
[1744897753624,0.08825759,84483.0,84482.0,0.74158951]
[1744897753820,0.20664589,84483.0,84482.0,0.74158951]
[1744897754133,0.20664589,84483.0,84482.0,0.12018984]
[1744897754331,0.1183981,84476.0,84475.0,0.2567954]
[1744897754531,0.2716894,84482.0,84481.0,0.1183911]
[1744897755045,0.3624894,84482.0,84481.0,0.1183911]
[1744897755540,0.4216852,84482.0,84481.0,0.1163911]
[1744897756024,0.1183981,84476.0,84475.0,0.000108]
[1744897756227,0.4891981,84476.0,84475.0,0.000108]
[1744897756422,0.1184079,84469.0,84468.0,0.18076513]
[1744897756639,0.6692079,84469.0,84468.0,0.18076513]
[1744897756836,1.0975079,84469.0,84468.0,0.18076513]
[1744897757034,1.1877079,84469.0,84468.0,0.18076513]
[1744897757338,1.1877079,84469.0,84468.0,0.18084513]
[1744897758734,0.9377079,84469.0,84468.0,0.18084513]
[1744897759538,0.9377079,84469.0,84468.0,8e-05]
[1744897764439,0.1184107,84467.0,84466.0,0.00017759]
[1744897764944,0.3045107,84467.0,84466.0,0.00017759]
[1744897765238,0.3045107,84467.0,84466.0,0.11858969]
[1744897765433,0.3045107,84467.0,84466.0,0.00017759]
[1744897766438,0.3045107,84467.0,84466.0,0.4603895]
[1744897766644,0.3045107,84467.0,84466.0,0.5524895]
[1744897768134,0.2128107,84467.0,84466.0,0.5524895]
[1744897768340,0.0944,84467.0,84466.0,0.5524895]
[1744897768530,0.00017759,84483.0,84474.0,0.1775999]
[1744897768731,0.2085002,84475.0,84474.0,0.1775999]
[1744897769135,0.2084995,84475.0,84474.0,0.51939971]
[1744897769335,0.1184739,84479.0,84478.0,0.1183953]
[1744897769647,0.00017759,84483.0,84482.0,0.1183897]
[1744897769833,0.00017759,84483.0,84482.0,0.46018951]
[1744897770343,0.00017759,84483.0,84482.0,0.55118951]
[1744897770839,0.00025759,84483.0,84482.0,0.54618951]
[1744897771040,0.00017759,84483.0,84482.0,0.54618951]
[1744897771228,0.00025759,84483.0,84482.0,0.54618951]
[1744897771431,0.005,84488.0,84487.0,0.1183827]
[1744897771641,0.005,84488.0,84487.0,0.45718251]
[1744897772034,0.3608,84500.0,84499.0,0.1183658]
[1744897772336,0.3608,84500.0,84496.0,0.0591847]
[1744897772337,0.00019684,84501.0,84500.0,0.1153644]
[1744897772542,0.00019684,84501.0,84498.0,0.0591829]
[1744897772543,0.26796516,84505.0,84504.0,0.34179981]
[1744897772730,0.26796516,84505.0,84504.0,0.46015861]
[1744897773139,0.36196516,84505.0,84504.0,0.46015861]
[1744897773343,0.14960776,84505.0,84504.0,0.55445861]
[1744897773533,0.14960776,84505.0,84504.0,0.56314021]
[1744897773938,0.15260776,84505.0,84504.0,0.56314021]
[1744897774134,0.15268776,84505.0,84504.0,0.64198021]
[1744897774643,0.00017759,84509.0,84508.0,0.1183532]
[1744897774830,0.00017759,84509.0,84508.0,0.46015301]
[1744897775242,0.11860939,84509.0,84508.0,0.46015301]
[1744897775548,0.11860939,84509.0,84508.0,0.42987981]
[1744897775841,0.11860939,84509.0,84508.0,0.23862304]
[1744897776144,0.118356,84507.0,84506.0,0.1183555]
[1744897776341,0.118356,84507.0,84506.0,0.23854534]
[1744897776541,0.118356,84507.0,84504.0,0.0788]
[1744897776542,0.1183574,84505.0,84504.0,0.0788]
[1744897777046,0.1283574,84505.0,84504.0,0.0788]
[1744897777231,0.2215574,84505.0,84504.0,0.1972388]
[1744897777436,0.2215574,84505.0,84504.0,0.07888]
[1744897779141,0.2215574,84505.0,84504.0,0.1972388]
[1744897779344,0.1183672,84498.0,84493.0,0.1692]
[1744897779542,0.5383515,84498.0,84497.0,0.1183686]
[1744897780146,0.0591857,84496.0,84493.0,0.1971739]
[1744897780446,0.0591857,84496.0,84493.0,0.2563608]
[1744897780447,0.1183729,84494.0,84493.0,0.2563608]
[1744897780946,0.3028729,84494.0,84493.0,0.2563608]
[1744897781250,0.3028729,84494.0,84493.0,0.2564408]
[1744897781449,0.3028729,84494.0,84493.0,0.2574408]
[1744897782046,0.3128729,84494.0,84493.0,0.1786408]
[1744897782945,0.3128729,84494.0,84493.0,0.1224543]
[1744897783452,0.3128729,84494.0,84493.0,0.1204543]
[1744897783651,0.3128729,84494.0,84493.0,0.1194543]
[1744897784153,0.3128729,84494.0,84493.0,0.1203743]
[1744897784446,0.3128729,84494.0,84493.0,0.1194543]
[1744897786741,0.3128729,84494.0,84493.0,0.3964543]
[1744897790758,0.3128729,84494.0,84493.0,0.3963743]
[1744897790958,0.2239729,84494.0,84493.0,0.3963743]
[1744897791156,0.22597285,84494.0,84493.0,0.3964543]
[1744897791853,0.31957285,84494.0,84493.0,0.3964543]
[1744897792357,0.31957285,84494.0,84493.0,0.3984543]
[1744897792770,0.31957285,84494.0,84493.0,0.3954543]
[1744897793271,0.31957285,84494.0,84493.0,0.3964543]
[1744897793469,0.30957285,84494.0,84493.0,0.3964543]
[1744897794770,0.30957285,84494.0,84493.0,0.3954543]
[1744897794967,0.30957285,84494.0,84493.0,0.3964543]
[1744897795375,0.30957285,84494.0,84493.0,0.3954543]
[1744897795674,0.30957285,84494.0,84493.0,0.3964543]
[1744897795874,0.3075729,84494.0,84493.0,0.3963743]
[1744897796271,0.31957285,84494.0,84493.0,0.3964543]
[1744897796467,0.31957285,84494.0,84493.0,0.3954543]
[1744897796660,0.31957285,84494.0,84493.0,0.00108]
[1744897796865,0.059189,84491.0,84487.0,0.02]
[1744897797066,0.0591925,84486.0,84482.0,0.1975834]
[1744897797277,0.4791883,84483.0,84482.0,0.1775834]
[1744897797777,0.6663883,84483.0,84482.0,0.0592745]
[1744897797969,0.6663883,84483.0,84482.0,8e-05]
[1744897798168,0.6663883,84483.0,84482.0,0.1184697]
[1744897798777,0.4553,84483.0,84482.0,0.46026951]
[1744897798961,0.00017759,84491.0,84490.0,0.1183785]
[1744897799276,0.47935469,84491.0,84490.0,0.64927831]
[1744897799475,0.4795005,84491.0,84490.0,0.64927831]
[1744897799867,0.57385469,84491.0,84490.0,0.64927831]
[1744897800072,0.57393469,84491.0,84490.0,0.64927831]
[1744897800279,0.66663469,84491.0,84490.0,0.64927831]
[1744897800582,0.21313469,84491.0,84490.0,0.64927831]
[1744897800771,0.09467759,84491.0,84490.0,0.64927831]
[1744897800966,0.45547759,84491.0,84490.0,0.64927831]
[1744897801276,0.57385469,84491.0,84490.0,0.53089981]
[1744897801471,0.1183855,84485.0,84484.0,0.02]
[1744897801775,0.1183855,84485.0,84476.0,0.1377589]
[1744897801776,0.1183883,84483.0,84482.0,0.003]
[1744897802169,0.1183939,84479.0,84478.0,0.1183939]
[1744897802479,0.1183939,84479.0,84478.0,0.23866374]
[1744897802668,0.0935,84482.0,84478.0,0.67947741]
[1744897802978,0.0935,84482.0,84481.0,0.46019091]
[1744897803366,0.4791883,84483.0,84482.0,0.1183897]
[1744897803567,0.3608,84483.0,84482.0,0.65078951]
[1744897804075,0.4791883,84483.0,84482.0,0.65078951]
[1744897804372,0.36088,84483.0,84482.0,0.65078951]
[1744897804782,0.3608,84483.0,84482.0,0.65078951]
[1744897804970,0.4792683,84483.0,84482.0,0.65078951]
[1744897805677,0.36088,84483.0,84482.0,0.65078951]
[1744897805873,0.1183737,84494.0,84490.0,0.1183785]
[1744897806075,0.00010801,84493.0,84490.0,0.80823831]
[1744897806781,0.00217754,84491.0,84490.0,0.80823831]
[1744897806971,0.12055464,84491.0,84490.0,0.80831831]
[1744897807176,0.12055464,84491.0,84490.0,0.58670834]
[1744897807477,0.21275464,84491.0,84490.0,0.80823831]
[1744897807671,0.21275464,84491.0,84490.0,0.80831831]
[1744897808671,0.00217754,84491.0,84490.0,0.80831831]
[1744897809274,0.12055464,84491.0,84490.0,0.80831831]
[1744897809477,0.00217754,84491.0,84490.0,0.80831831]
[1744897809673,0.00225754,84491.0,84490.0,0.80831831]
[1744897810282,0.12063464,84491.0,84490.0,0.80831831]
[1744897810779,0.11855469,84491.0,84490.0,0.80823831]
[1744897811279,0.12055464,84491.0,84490.0,0.80823831]
[1744897811582,0.12055464,84491.0,84490.0,0.58662834]
[1744897811779,0.29755464,84491.0,84490.0,0.58662834]
[1744897811979,0.29755464,84491.0,84490.0,0.58670834]
[1744897812371,0.29755464,84491.0,84490.0,0.12026984]
[1744897812682,0.1183869,84484.0,84483.0,0.02]
[1744897812881,0.1183911,84481.0,84480.0,0.29915523]
[1744897813178,0.1183826,84488.0,84487.0,0.1183827]
[1744897813566,0.2943826,84488.0,84487.0,0.2977827]
[1744897813770,0.2943826,84488.0,84487.0,0.2978627]
[1744897814285,0.2052826,84488.0,84487.0,0.46026251]
[1744897814584,0.2943826,84488.0,84487.0,8e-05]
[1744897814784,0.2944626,84488.0,84487.0,8e-05]
[1744897814984,0.3536555,84488.0,84487.0,0.1183827]
[1744897815282,0.2053662,84488.0,84487.0,0.23865254]
[1744897815477,0.08698,84488.0,84487.0,0.46026251]
[1744897815683,0.2053613,84488.0,84487.0,0.46026251]
[1744897815880,0.2053613,84488.0,84484.0,0.059193]
[1744897815881,0.1775817,84485.0,84484.0,0.059193]
[1744897816092,0.5975751,84485.0,84484.0,0.46018671]
[1744897816382,0.59965505,84485.0,84484.0,0.23857674]
[1744897816585,0.59965505,84485.0,84484.0,0.23865674]
[1744897817784,0.59965505,84485.0,84484.0,8e-05]
[1744897817983,0.1183883,84483.0,84482.0,0.07856]
[1744897818184,0.0591955,84481.0,84475.0,0.02]
[1744897818374,0.0591955,84481.0,84474.0,0.00017759]
[1744897818375,0.1183995,84475.0,84474.0,0.11857849]
[1744897818876,0.2997995,84475.0,84474.0,0.11857849]
[1744897819788,0.2997995,84475.0,84474.0,0.12265849]
[1744897820680,0.2997995,84475.0,84474.0,0.12465849]
[1744897822078,0.2061995,84475.0,84474.0,0.30755849]
[1744897822279,0.2061995,84475.0,84474.0,0.6493583]
[1744897822482,0.3608,84478.0,84474.0,0.5901578]
[1744897822681,8e-05,84480.0,84479.0,0.46019371]
[1744897822883,0.1183875,84484.0,84483.0,0.1183883]
[1744897823078,0.1183875,84484.0,84483.0,0.46018811]
[1744897823280,0.2102875,84484.0,84483.0,0.64388811]
[1744897823489,0.2972875,84484.0,84483.0,0.64388811]
[1744897824083,0.0919,84484.0,84483.0,0.64388811]
[1744897824483,0.36287995,84485.0,84484.0,0.1183869]
[1744897824796,0.36287995,84485.0,84484.0,0.64388671]
[1744897825091,0.48134545,84485.0,84484.0,0.46018671]
[1744897825276,0.48134545,84485.0,84484.0,0.34179981]
[1744897825481,0.1183883,84483.0,84482.0,0.1183891]
[1744897825676,0.57064545,84485.0,84484.0,0.46018671]
[1744897825993,0.48134545,84485.0,84484.0,0.46018671]
[1744897826180,0.56904545,84485.0,84484.0,0.54858671]
[1744897826491,0.56904545,84485.0,84484.0,0.54866671]
[1744897826685,0.56904545,84485.0,84484.0,0.54858671]
[1744897826886,0.56904545,84485.0,84484.0,0.54866671]
[1744897827087,0.56904545,84485.0,84484.0,0.00108]
[1744897827382,0.56904545,84485.0,84484.0,0.1193869]
[1744897827582,0.56904545,84485.0,84484.0,0.1194669]
[1744897827782,0.56904545,84485.0,84484.0,0.1184669]
[1744897828386,0.0591945,84483.0,84480.0,0.1775859]
[1744897828587,0.177588,84481.0,84480.0,0.1775859]
[1744897829084,0.1496755,84481.0,84480.0,0.1775859]
[1744897829587,0.1496755,84481.0,84480.0,0.1795859]
[1744897830990,0.1496755,84481.0,84480.0,0.1805859]
[1744897831381,8e-05,84481.0,84480.0,0.1805859]
[1744897831587,8e-05,84481.0,84480.0,0.61748571]
[1744897831889,0.00207995,84485.0,84484.0,0.1183869]
[1744897832093,0.00207995,84485.0,84484.0,0.64498671]
[1744897832896,0.12046545,84485.0,84484.0,0.64498671]
[1744897833084,0.00207995,84485.0,84484.0,0.64498671]
[1744897834297,0.00215995,84485.0,84484.0,0.64598671]
[1744897836187,0.00017759,84491.0,84490.0,0.1183785]
[1744897836386,0.00017759,84491.0,84490.0,0.46017831]
[1744897836581,0.00017759,84491.0,84490.0,0.54997831]
[1744897837192,0.00019684,84510.0,84490.0,1.17239981]
[1744897837395,0.00019684,84510.0,84509.0,0.33996177]
[1744897837690,0.00048428,84512.0,84511.0,0.117349]
[1744897838000,0.1183476,84512.0,84511.0,0.45914881]
[1744897838695,0.0641731,84514.0,84513.0,0.1183462]
[1744897838696,0.1233448,84514.0,84513.0,0.1183462]
[1744897838994,0.1233448,84514.0,84513.0,0.45814601]
[1744897839292,0.1234248,84514.0,84513.0,0.45814601]
[1744897839499,0.00508,84514.0,84513.0,0.45814601]
[1744897839700,0.00508,84514.0,84513.0,0.54594601]
[1744897839999,0.005,84514.0,84513.0,0.54594601]
[1744897840299,0.00508,84514.0,84513.0,0.54594601]
[1744897840501,0.00508,84514.0,84513.0,0.64034601]
[1744897840798,0.2108248,84514.0,84513.0,0.64034601]
[1744897842296,0.5716248,84514.0,84513.0,0.64034601]
[1744897844097,0.09248,84514.0,84513.0,0.64034601]
[1744897844289,0.05931001,84526.0,84519.0,0.1183378]
[1744897844594,0.00025759,84520.0,84519.0,0.46013761]
[1744897844801,0.11859399,84520.0,84519.0,0.55043761]
[1744897844987,0.11859399,84520.0,84519.0,0.72383761]
[1744897846003,0.21229399,84520.0,84519.0,0.72383761]
[1744897847002,0.57309399,84520.0,84519.0,0.72383761]
[1744897847189,0.00025759,84520.0,84519.0,0.72383761]
[1744897847388,0.3608,84531.0,84519.0,0.72383761]
[1744897847389,0.1183219,84531.0,84527.0,0.0591633]
[1744897847587,0.0865,84528.0,84527.0,0.0591633]
[1744897847793,0.0865,84528.0,84527.0,0.1380833]
[1744897848003,0.0865,84528.0,84527.0,0.47988311]
[1744897848188,0.2049052,84528.0,84527.0,0.1972466]
[1744897848503,0.6519052,84528.0,84527.0,0.1972466]
[1744897849193,0.6519052,84528.0,84527.0,0.1982466]
[1744897850803,0.6519052,84528.0,84527.0,0.07992]
[1744897851007,0.6519052,84528.0,84527.0,0.1982466]
[1744897851309,0.2911052,84528.0,84527.0,0.1982466]
[1744897851497,0.2910252,84528.0,84527.0,0.2857466]
[1744897851698,0.2911052,84528.0,84527.0,0.07992]
[1744897851901,0.2911052,84528.0,84527.0,0.1982466]
[1744897852797,0.2911052,84528.0,84527.0,0.07992]
[1744897853896,0.2911052,84528.0,84527.0,0.1982466]
[1744897855500,0.2911052,84528.0,84527.0,0.54004641]
[1744897855706,0.2911052,84528.0,84527.0,0.63024641]
[1744897855910,0.2910252,84528.0,84527.0,0.63024641]
[1744897856106,0.2911052,84528.0,84527.0,0.63024641]
[1744897856499,0.2910252,84528.0,84527.0,0.63024641]
[1744897856699,0.2911052,84528.0,84527.0,0.54004641]
[1744897857006,0.2911052,84528.0,84527.0,0.1982466]
[1744897857605,0.2911052,84528.0,84527.0,0.1193266]
[1744897857813,0.2911052,84528.0,84527.0,0.34093657]
[1744897858007,0.2911052,84528.0,84527.0,0.46112641]
[1744897858594,0.08658,84528.0,84527.0,0.46112641]
[1744897858799,0.08658,84528.0,84527.0,0.53956641]
[1744897859015,0.0865,84528.0,84527.0,0.53956641]
[1744897859214,0.08658,84528.0,84527.0,0.53956641]
[1744897859798,8e-05,84528.0,84527.0,0.53956641]
[1744897860109,0.00062446,84541.0,84527.0,0.53956641]
[1744897860110,0.3608,84567.0,84543.0,0.0591521]
[1744897860413,0.17889216,84570.0,84563.0,0.1182763]
[1744897860714,0.17889216,84570.0,84563.0,0.67890468]
[1744897861010,0.17889216,84570.0,84569.0,0.1182679]
[1744897861203,0.17889216,84570.0,84569.0,0.46006771]
[1744897861708,0.14954559,84571.0,84570.0,0.1182665]
[1744897861907,0.23924559,84571.0,84570.0,0.2043665]
[1744897862105,0.23924559,84571.0,84570.0,0.63786631]
[1744897862106,0.23932559,84571.0,84570.0,0.63786631]
[1744897862708,0.35759069,84571.0,84570.0,0.63786631]
[1744897863109,0.71839069,84571.0,84570.0,0.63786631]
[1744897863807,0.71839069,84571.0,84570.0,0.34179981]
[1744897864004,0.71839069,84571.0,84570.0,0.46006631]
[1744897864412,0.71839069,84571.0,84570.0,0.1182665]
[1744897865206,0.1182749,84564.0,84563.0,0.1182742]
[1744897865413,0.4790749,84564.0,84563.0,0.1967142]
[1744897865603,0.4790749,84564.0,84563.0,0.53851401]
[1744897865803,0.4790749,84564.0,84563.0,0.34179981]
[1744897866017,0.6615749,84564.0,84563.0,0.08730443]
[1744897866318,0.6615749,84564.0,84563.0,0.1966763]
[1744897866716,0.1825,84564.0,84563.0,0.53847611]
[1744897867013,0.2095749,84564.0,84563.0,0.53847611]
[1744897867206,0.2096549,84564.0,84563.0,0.53847611]
[1744897867402,0.2095749,84564.0,84563.0,0.72427611]
[1744897867611,0.2096549,84564.0,84563.0,0.72427611]
[1744897868001,0.09138,84564.0,84563.0,0.72427611]
[1744897868206,0.2096549,84564.0,84563.0,0.72427611]
[1744897868503,0.09138,84564.0,84563.0,0.72427611]
[1744897868905,8e-05,84564.0,84563.0,0.73309045]
[1744897869518,0.00017747,84572.0,84571.0,0.1182651]
[1744897869717,0.00028548,84572.0,84571.0,0.46006491]
[1744897869917,0.11844117,84572.0,84571.0,0.46006491]
[1744897870119,0.11852117,84572.0,84571.0,0.46006491]
[1744897870516,0.20402117,84572.0,84571.0,0.46006491]
[1744897870819,0.00025747,84572.0,84571.0,0.46006491]
[1744897871020,0.00017747,84572.0,84571.0,0.64036491]
[1744897871814,0.00025747,84572.0,84571.0,0.64036491]
[1744897872021,0.00017747,84572.0,84571.0,0.64036491]
[1744897872215,1e-08,84572.0,84571.0,0.64036491]
[1744897872413,0.3608,84597.0,84578.0,0.0591273]
[1744897872621,0.00053146,84589.0,84588.0,0.46004111]
[1744897872927,0.3608,84595.0,84591.0,0.1182371]
[1744897873116,0.3608,84595.0,84591.0,0.46003691]
[1744897873521,0.46091747,84600.0,84599.0,0.1182259]
[1744897873815,0.57914197,84600.0,84599.0,0.53842571]
[1744897874017,0.55421747,84600.0,84599.0,0.53842571]
[1744897874205,0.55429747,84600.0,84599.0,0.53842571]
[1744897874410,0.55429747,84600.0,84599.0,0.71782571]
[1744897874609,0.67252197,84600.0,84599.0,0.71782571]
[1744897876122,0.55429747,84600.0,84599.0,0.71782571]
[1744897876819,0.67252197,84600.0,84599.0,0.71782571]
[1744897877022,0.55429747,84600.0,84599.0,0.71782571]
[1744897877232,0.67252197,84600.0,84599.0,0.62452571]
[1744897877914,0.67252197,84600.0,84599.0,0.54612571]
[1744897878117,0.76482197,84600.0,84599.0,0.54612571]
[1744897878716,0.76482197,84600.0,84599.0,0.63762571]
[1744897879111,0.76482197,84600.0,84599.0,0.71602571]
[1744897879313,0.76482197,84600.0,84599.0,0.1966259]
[1744897879721,0.1182287,84597.0,84596.0,0.0857]
[1744897879919,0.1182287,84597.0,84596.0,0.1641]
[1744897880117,0.3022287,84597.0,84596.0,0.2823301]
[1744897880421,0.0911,84597.0,84596.0,0.2823301]
[1744897880619,0.46099747,84600.0,84599.0,0.1182259]
[1744897880920,0.57922197,84600.0,84599.0,0.46002571]
[1744897881111,0.46091747,84600.0,84599.0,0.63332571]
[1744897881319,0.46099747,84600.0,84599.0,0.63332571]
[1744897882522,0.46091747,84600.0,84599.0,0.63332571]
[1744897882719,0.46099747,84600.0,84599.0,0.63332571]
[1744897883115,0.57922197,84600.0,84599.0,0.63332571]
[1744897883424,0.57922197,84600.0,84599.0,0.31793574]
[1744897883612,0.75652197,84600.0,84599.0,0.31793574]
[1744897883815,0.75652197,84600.0,84599.0,0.1977459]
[1744897884117,0.69741017,84600.0,84599.0,0.1977459]
[1744897884514,0.54759747,84600.0,84599.0,0.53954571]
[1744897884720,0.54759747,84600.0,84599.0,0.71304571]
[1744897884918,0.54751747,84600.0,84599.0,0.80204571]
[1744897885114,0.54759747,84600.0,84599.0,0.80204571]
[1744897886036,0.18671747,84600.0,84599.0,0.80204571]
[1744897886338,8e-05,84600.0,84599.0,1.16284571]
[1744897886521,0.0845,84611.0,84610.0,0.1182106]
[1744897886727,0.0845,84611.0,84610.0,0.46001041]
[1744897887426,0.00014581,84613.0,84612.0,0.1182078]
[1744897887616,0.0863,84617.0,84616.0,0.1182022]
[1744897887814,0.0863,84617.0,84616.0,0.46000201]
[1744897888222,0.2045008,84617.0,84616.0,0.24726303]
[1744897888424,0.0863,84617.0,84616.0,0.548393]
[1744897888619,0.005,84618.0,84617.0,0.1182008]
[1744897888823,0.005,84618.0,84617.0,0.62950061]
[1744897889124,0.1232794,84618.0,84617.0,0.62950061]
[1744897889622,0.00508,84618.0,84617.0,0.62950061]
[1744897891631,0.36588,84618.0,84617.0,0.62950061]
[1744897891929,0.36588,84618.0,84617.0,0.46000061]
[1744897892129,0.6548794,84618.0,84617.0,0.53952061]
[1744897893723,0.53668,84618.0,84617.0,0.53952061]
[1744897894334,0.00010801,84624.0,84623.0,0.1181924]
[1744897894524,0.00010801,84624.0,84623.0,0.45999221]
[1744897894827,0.00010801,84624.0,84623.0,0.64349221]
[1744897895032,0.2040875,84627.0,84626.0,0.1181882]
[1744897895235,0.2040875,84627.0,84626.0,0.45998801]
[1744897895529,0.2040875,84627.0,84626.0,0.32477804]
[1744897895833,0.2040875,84627.0,84626.0,0.2045882]
[1744897896127,0.1181966,84620.0,84619.0,0.02]
[1744897896330,0.1182064,84613.0,84612.0,0.1382078]
[1744897896627,0.1182064,84613.0,84612.0,0.1182078]
[1744897896628,0.4890064,84613.0,84612.0,0.1182078]
[1744897896818,0.059105,84611.0,84607.0,0.059107]
[1744897897018,0.1182162,84606.0,84605.0,0.1976967]
[1744897897226,0.1282162,84606.0,84605.0,0.07948]
[1744897897525,0.3197162,84606.0,84605.0,0.07948]
[1744897897718,0.4063162,84606.0,84605.0,0.07948]
[1744897898232,0.4063162,84606.0,84605.0,0.1976975]
[1744897898434,0.4063962,84606.0,84605.0,0.1976975]
[1744897898724,0.4063962,84606.0,84605.0,0.2016975]
[1744897898926,0.4063962,84606.0,84605.0,0.08348]
[1744897899125,0.4063962,84606.0,84605.0,0.2016975]
[1744897899323,0.4063962,84606.0,84605.0,0.1222175]
[1744897899827,0.4063962,84606.0,84605.0,0.004]
[1744897900223,0.1182189,84604.0,84603.0,0.0591095]
[1744897900426,0.1382189,84604.0,84603.0,0.0591095]
[1744897901220,0.1182203,84603.0,84602.0,0.00017737]
[1744897901533,0.3166203,84603.0,84602.0,0.11839907]
[1744897902329,0.6774203,84603.0,84602.0,0.11839907]
[1744897902724,0.6775003,84603.0,84602.0,0.11839907]
[1744897903323,0.55928,84603.0,84602.0,0.11839907]
[1744897903523,0.6775003,84603.0,84602.0,0.11839907]
[1744897903725,0.36088,84603.0,84602.0,0.54739888]
[1744897903919,0.3608,84603.0,84602.0,0.63659888]
[1744897904119,0.36088,84603.0,84602.0,0.63659888]
[1744897904529,8e-05,84603.0,84602.0,0.63659888]
[1744897905033,0.4521,84610.0,84609.0,0.118212]
[1744897905240,0.4521,84610.0,84609.0,0.23840184]
[1744897905420,0.4521,84610.0,84609.0,0.205312]
[1744897905626,0.5365,84610.0,84609.0,0.297012]
[1744897906838,0.5365,84610.0,84609.0,0.205312]
[1744897907240,0.5365,84610.0,84609.0,0.206312]
[1744897907832,0.5365,84610.0,84609.0,0.209312]
[1744897908232,0.6547106,84610.0,84609.0,0.004]
[1744897908434,0.6647106,84610.0,84609.0,0.004]
[1744897909435,0.6647106,84610.0,84609.0,0.003]
[1744897909625,0.6647106,84610.0,84609.0,0.121212]
[1744897910036,0.6647106,84610.0,84609.0,0.211712]
[1744897910334,0.6647906,84610.0,84609.0,0.211712]
[1744897910534,0.6547906,84610.0,84609.0,0.209712]
[1744897911235,0.1182148,84607.0,84606.0,0.0591076]
[1744897911436,0.1282148,84607.0,84606.0,0.0591076]
[1744897911644,0.3077148,84607.0,84606.0,0.0591076]
[1744897911828,0.3077148,84607.0,84602.0,0.00017737]
[1744897911829,0.1182203,84603.0,84602.0,0.00017737]
[1744897912030,0.4990203,84603.0,84602.0,0.00017737]
[1744897912336,0.6785203,84603.0,84602.0,0.00017737]
[1744897912835,0.1182287,84597.0,84596.0,0.18076513]
[1744897913041,0.6690287,84597.0,84596.0,0.18076513]
[1744897913227,0.9190287,84597.0,84596.0,0.18076513]
[1744897913423,1.1007287,84597.0,84596.0,0.18076513]
[1744897913931,0.0591171,84593.0,84589.0,0.02508337]
[1744897914133,0.0591171,84593.0,84567.0,0.0591348]
[1744897914134,0.3608,84590.0,84567.0,0.0591348]
[1744897914435,0.1182608,84575.0,84574.0,0.1182595]
[1744897914637,0.02,84575.0,84574.0,0.3802595]
[1744897914840,0.02,84575.0,84574.0,0.72205931]
[1744897915136,0.02008,84575.0,84574.0,0.72205931]
[1744897915339,0.1383395,84575.0,84574.0,0.72205931]
[1744897915837,0.1182707,84568.0,84566.0,0.10810655]
[1744897916040,0.1382707,84568.0,84567.0,0.49293511]
[1744897916238,0.1382707,84568.0,84567.0,0.61119911]
[1744897916539,0.1382707,84568.0,84567.0,0.70389911]
[1744897917331,0.1382707,84568.0,84567.0,0.1511353]
[1744897917635,0.1382707,84568.0,84567.0,0.1581353]
[1744897918544,0.1382707,84568.0,84567.0,0.2508353]
[1744897919140,0.1382707,84568.0,84567.0,0.2538353]
[1744897920237,0.02,84568.0,84567.0,0.59563511]
[1744897920437,0.3608,84587.0,84572.0,0.0591317]
[1744897920636,0.02028527,84583.0,84582.0,0.46004951]
[1744897920835,0.02028527,84583.0,84582.0,0.71674951]
[1744897920836,0.02017726,84583.0,84582.0,0.71674951]
[1744897921039,0.13842556,84583.0,84582.0,0.71674951]
[1744897921341,0.1182581,84576.0,84570.0,0.07916]
[1744897921540,0.1182651,84571.0,84570.0,0.3156851]
[1744897921745,0.02,84571.0,84570.0,0.3156851]
[1744897922037,0.02,84571.0,84570.0,0.65748491]
[1744897922239,0.02008,84571.0,84570.0,0.65748491]
[1744897922643,0.02008,84571.0,84570.0,0.90748491]
[1744897922840,0.02008,84571.0,84570.0,0.90948491]
[1744897923038,0.02,84571.0,84570.0,0.90948491]
[1744897923636,0.02,84571.0,84570.0,0.65948491]
[1744897923829,0.02008,84571.0,84570.0,0.65948491]
[1744897924029,0.02,84571.0,84570.0,0.65948491]
[1744897924234,0.02008,84571.0,84570.0,0.66448491]
[1744897924836,0.00017726,84583.0,84571.0,0.0591324]
[1744897925043,0.00017726,84583.0,84582.0,0.82084951]
[1744897925246,0.00025726,84583.0,84582.0,0.99774951]
[1744897925548,0.00017726,84583.0,84582.0,1.08274951]
[1744897925742,0.00025726,84583.0,84582.0,1.08274951]
[1744897925941,0.00025726,84583.0,84582.0,0.72194951]
[1744897925942,0.36105726,84583.0,84582.0,0.72194951]
[1744897926444,0.00025726,84583.0,84582.0,0.72194951]
[1744897927132,6e-08,84583.0,84582.0,0.72194951]
[1744897927441,0.08963716,84598.0,84597.0,0.1182287]
[1744897927743,0.08963716,84598.0,84597.0,0.89998845]
[1744897927935,0.08971716,84598.0,84597.0,1.16218845]
[1744897928139,0.08963716,84603.0,84602.0,0.1182217]
[1744897928338,0.11951622,84608.0,84602.0,0.1182217]
[1744897928339,0.11951622,84608.0,84607.0,0.1182148]
[1744897928544,0.11951622,84608.0,84607.0,0.82081455]
[1744897928738,0.11959622,84608.0,84607.0,0.82081455]
[1744897929045,0.07150052,84608.0,84607.0,0.82081455]
[1744897929346,0.14954195,84615.0,84614.0,0.118205]
[1744897929648,0.14954195,84615.0,84614.0,0.46000475]
[1744897930352,0.14954195,84615.0,84614.0,0.63660475]
[1744897930553,0.14954195,84615.0,84614.0,0.63860475]
[1744897931544,0.1789,84620.0,84617.0,0.1182008]
[1744897931740,0.1789,84620.0,84617.0,0.46000055]
[1744897932054,0.1231994,84618.0,84617.0,0.1973608]
[1744897932553,0.1231994,84618.0,84617.0,0.1182008]
[1744897932754,0.2934994,84618.0,84617.0,0.1182008]
[1744897933348,0.2934994,84618.0,84617.0,0.001]
[1744897933552,0.2934994,84618.0,84610.0,0.0885]
[1744897933553,0.1182092,84611.0,84610.0,0.02]
[1744897933745,0.5381144,84611.0,84610.0,0.1182106]
[1744897934242,0.4199052,84611.0,84610.0,0.1182106]
[1744897934444,0.5902052,84611.0,84610.0,0.1182106]
[1744897934954,0.5902052,84611.0,84610.0,0.1222106]
[1744897935551,0.0844,84611.0,84610.0,0.1222106]
[1744897935746,0.0844,84611.0,84610.0,0.2110106]
[1744897935946,0.08448,84611.0,84610.0,0.2110106]